lending/lending_fUSD_20251114
["ID","MTS","AMOUNT","RATE_DAILY","PERIOD"]
[393979383,1763155038750,500.0,0.00041545,30]
[393979384,1763155039309,250.0,0.00041545,30]
[393979385,1763155039828,500.0,0.00041545,30]
[393979386,1763155039914,250.0,0.00041545,30]
[393979387,1763155040484,500.0,0.00041545,30]
[393979388,1763155040546,250.0,0.00041545,30]
[393979389,1763155041108,500.0,0.00041545,30]
[393979390,1763155041184,250.0,0.00041545,30]
[393979391,1763155041712,500.0,0.00041545,30]
[393979392,1763155041786,250.0,0.00041545,30]
[393979393,1763155042330,500.0,0.00041545,30]
[393979394,1763155042398,250.0,0.00041545,30]
[393979395,1763155042959,500.0,0.00041545,30]
[393979396,1763155043034,250.0,0.00041545,30]
[393979397,1763155043585,500.0,0.00041545,30]
[393979398,1763155044188,500.0,0.00041545,30]
[393979399,1763155045015,500.0,0.00041545,30]
[393979400,1763155045413,500.0,0.00041545,30]
[393979401,1763155046025,500.0,0.00041545,30]
[393979402,1763155046106,200.0,0.00041545,30]
[393979403,1763155046284,250.0,0.00041545,30]
[393979404,1763155046624,500.0,0.00041545,30]
[393979405,1763155046739,207.4,0.00041545,30]
[393979406,1763155046879,250.0,0.00041545,30]
[393979407,1763155047226,500.0,0.00041545,30]
[393979408,1763155047334,215.0738,0.00041545,30]
[393979409,1763155047489,250.0,0.00041545,30]
[393979410,1763155047936,223.0315306,0.00041545,30]
[393979411,1763155048139,250.0,0.00041545,30]
[393979412,1763155048546,231.28369723,0.00041545,30]
[393979413,1763155048736,250.0,0.00041545,30]
[393979414,1763155049153,239.84119403,0.00041545,30]
[393979415,1763155049339,250.0,0.00041545,30]
[393979416,1763155049749,248.71531821,0.00041545,30]
[393979417,1763155049954,250.0,0.00041545,30]
[393979418,1763155050354,257.91778498,0.00041545,30]
[393979419,1763155050559,250.0,0.00041545,30]
[393979420,1763155050967,267.46074303,0.00041545,30]
[393979421,1763155051185,250.0,0.00041545,30]
[393979422,1763155051614,277.35679052,0.00041545,30]
[393979423,1763155051801,250.0,0.00041545,30]
[393979424,1763155052239,287.61899177,0.00041545,30]
[393979425,1763155052421,250.0,0.00041545,30]
[393979426,1763155052857,287.61899177,0.00041545,30]
[393979428,1763155085548,6622.71362167,0.00041541,30]
[393979429,1763155086055,500.0,0.00041541,30]
[393979430,1763155086661,500.0,0.00041541,30]
[393979431,1763155087278,500.0,0.00041541,30]
[393979432,1763155087915,500.0,0.00041541,30]
[393979433,1763155088054,500.0,0.00041541,30]
[393979434,1763155088595,500.0,0.00041541,30]
[393979435,1763155088681,500.0,0.00041541,30]
[393979436,1763155089224,500.0,0.00041541,30]
[393979437,1763155089328,500.0,0.00041541,30]
[393979438,1763155089887,500.0,0.00041541,30]
[393979439,1763155089962,500.0,0.00041541,30]
[393979440,1763155090536,500.0,0.00041541,30]
[393979441,1763155090605,500.0,0.00041541,30]
[393979442,1763155091186,500.0,0.00041541,30]
[393979443,1763155091251,500.0,0.00041541,30]
[393979444,1763155091828,500.0,0.00041541,30]
[393979445,1763155091929,500.0,0.00041541,30]
[393979446,1763155092542,500.0,0.00041541,30]
[393979447,1763155092650,500.0,0.00041541,30]
[393979448,1763155093267,500.0,0.00041541,30]
[393979449,1763155093875,500.0,0.00041541,30]
[393979450,1763155094502,500.0,0.00041541,30]
[393979451,1763155095109,500.0,0.00041541,30]
[393979452,1763155095720,500.0,0.00041541,30]
[393979453,1763155096345,500.0,0.00041541,30]
[393979454,1763155096969,500.0,0.00041541,30]
[393979455,1763155097591,500.0,0.00041541,30]
[393979456,1763155098224,500.0,0.00041541,30]
[393979457,1763155153630,500.0,0.00041541,30]
[393979458,1763155154285,500.0,0.00041541,30]
[393979459,1763155154870,500.0,0.00041541,30]
[393979460,1763155155475,500.0,0.00041541,30]
[393979462,1763155156080,500.0,0.00041541,30]
[393979463,1763155156689,500.0,0.00041541,30]
[393979483,1763155332028,161.190226,0.00041541,30]
[393979484,1763155332383,161.190226,0.00041541,30]
[393979485,1763155332723,161.190226,0.00041541,30]
[393979486,1763155333045,161.190226,0.00041541,30]
[393979487,1763155333106,193.349429,0.00041541,30]
[393979488,1763155333370,161.190226,0.00041541,30]
[393979489,1763155333461,193.349429,0.00041541,30]
[393979490,1763155333673,161.190226,0.00041541,30]
[393979491,1763155333774,193.349429,0.00041541,30]
[393979492,1763155333999,161.190226,0.00041541,30]
[393979493,1763155334298,161.190226,0.00041541,30]
[393979495,1763155334626,161.190226,0.00041541,30]
[393979496,1763155334950,161.190226,0.00041541,30]
[393979497,1763155335308,161.190226,0.00041541,30]
[393979498,1763155335644,161.190226,0.00041541,30]
[393979499,1763155335974,161.190226,0.00041541,30]
[393979500,1763155339742,150.911603,0.00041541,30]
[393979501,1763155340090,150.911603,0.00041541,30]
[393979502,1763155340409,150.911603,0.00041541,30]
[393979503,1763155340731,150.911603,0.00041541,30]
[393979504,1763155341055,150.911603,0.00041541,30]
[393979505,1763155341362,150.911603,0.00041541,30]
[393979506,1763155341671,150.911603,0.00041541,30]
[393979507,1763155342006,150.911603,0.00041541,30]
[393979508,1763155343308,150.911603,0.00041541,30]
[393979509,1763155343697,150.911603,0.00041541,30]
[393979510,1763155344459,150.911603,0.00041541,30]
[393979511,1763155345039,150.911603,0.00041541,30]
[393979512,1763155345901,151.329485,0.00041541,30]
[393979513,1763155345970,150.911603,0.00041541,30]
[393979514,1763155346124,151.329485,0.00041541,30]
[393979515,1763155346437,151.329485,0.00041541,30]
[393979516,1763155346748,151.329485,0.00041541,30]
[393979517,1763155347046,151.329485,0.00041541,30]
[393979518,1763155347382,151.329485,0.00041541,30]
[393979519,1763155347694,151.329485,0.00041541,30]
[393979520,1763155348009,151.329485,0.00041541,30]
[393979521,1763155348333,151.329485,0.00041541,30]
[393979522,1763155348635,151.329485,0.00041541,30]
[393979523,1763155348940,151.329485,0.00041541,30]
[393979524,1763155349242,151.329485,0.00041541,30]
[393979525,1763155349882,151.329485,0.00041541,30]
[393979526,1763155350225,151.329485,0.00041541,30]
[393979527,1763155350532,151.329485,0.00041541,30]
[393979528,1763155350844,151.329485,0.00041541,30]
[393979529,1763155351165,151.329485,0.00041541,30]
[393979558,1763155507388,1000.0,0.00013699,2]
[393979598,1763155614850,13018.69332628,0.000162,5]
[393979616,1763155700083,3999.949999,0.00041541,30]
[393979618,1763155717797,1063.515171,0.00015,3]
[393979619,1763155717823,10000.01,0.00015,3]
[393979620,1763155717846,10000.01,0.00015,3]
[393979621,1763155717869,10000.01,0.00015,3]
[393979622,1763155717894,10000.01,0.00015,3]
[393979623,1763155717927,10000.01,0.00015,3]
[393979624,1763155717951,10000.01,0.00015,3]
[393979625,1763155717973,10000.01,0.00015,3]
[393979626,1763155717997,2996.45301624,0.00015,3]
[393979627,1763155718092,200985.97115911,0.00041541,30]
[393979694,1763155807351,250.0,0.00041541,30]
[393979695,1763155807606,500.0,0.00041541,30]
[393979696,1763155807972,250.0,0.00041541,30]
[393979697,1763155808126,200.0,0.00041541,30]
[393979698,1763155808215,500.0,0.00041541,30]
[393979699,1763155808349,500.0,0.00041541,30]
[393979700,1763155808609,250.0,0.00041541,30]
[393979701,1763155808749,207.4,0.00041541,30]
[393979702,1763155808849,500.0,0.00041541,30]
[393979703,1763155809006,500.0,0.00041541,30]
[393979704,1763155809213,250.0,0.00041541,30]
[393979705,1763155809420,215.0738,0.00041541,30]
[393979706,1763155809496,500.0,0.00041541,30]
[393979707,1763155810020,250.0,0.00041541,30]
[393979708,1763155810091,250.0,0.00041541,30]
[393979709,1763155810152,500.0,0.00041541,30]
[393979710,1763155810225,223.0315306,0.00041541,30]
[393979711,1763155810290,500.0,0.00041541,30]
[393979712,1763155810525,250.0,0.00041541,30]
[393979713,1763155810588,500.0,0.00041541,30]
[393979714,1763155810648,250.0,0.00041541,30]
[393979715,1763155810706,231.28369723,0.00041541,30]
[393979716,1763155810772,500.0,0.00041541,30]
[393979717,1763155810838,500.0,0.00041541,30]
[393979718,1763155811143,250.0,0.00041541,30]
[393979719,1763155811208,250.0,0.00041541,30]
[393979720,1763155811282,239.84119403,0.00041541,30]
[393979721,1763155811409,500.0,0.00041541,30]
[393979722,1763155811791,250.0,0.00041541,30]
[393979723,1763155811858,250.0,0.00041541,30]
[393979724,1763155811932,248.71531821,0.00041541,30]
[393979725,1763155812273,500.0,0.00041541,30]
[393979726,1763155812460,250.0,0.00041541,30]
[393979727,1763155812521,250.0,0.00041541,30]
[393979728,1763155812578,257.91778498,0.00041541,30]
[393979729,1763155812692,500.0,0.00041541,30]
[393979730,1763155813158,267.46074303,0.00041541,30]
[393979731,1763155813219,250.0,0.00041541,30]
[393979732,1763155813285,250.0,0.00041541,30]
[393979733,1763155813372,500.0,0.00041541,30]
[393979734,1763155813795,250.0,0.00041541,30]
[393979735,1763155813860,267.46074303,0.00041539,30]
[393979736,1763155813923,250.0,0.00041539,30]
[393979737,1763155813984,500.0,0.00041539,30]
[393979742,1763155814286,250.0,0.00041539,30]
[393979743,1763155814421,250.0,0.00041539,30]
[393979744,1763155814540,250.0,0.00041539,30]
[393979745,1763155814604,500.0,0.00041539,30]
[393979746,1763155814923,250.0,0.00041539,30]
[393979747,1763155815049,250.0,0.00041539,30]
[393979748,1763155815208,500.0,0.00041539,30]
[393979749,1763155815273,250.0,0.00041539,30]
[393979750,1763155815342,151.0,0.00041539,30]
[393979751,1763155815729,250.0,0.00041539,30]
[393979752,1763155815829,500.0,0.00041539,30]
[393979753,1763155815889,250.0,0.00041539,30]
[393979754,1763155815968,151.0,0.00041539,30]
[393979755,1763155816328,250.0,0.00041539,30]
[393979756,1763155816458,500.0,0.00041539,30]
[393979757,1763155816523,151.0,0.00041539,30]
[393979758,1763155816918,250.0,0.00041539,30]
[393979759,1763155817057,500.0,0.00041539,30]
[393979760,1763155817557,250.0,0.00041539,30]
[393979761,1763155817672,500.0,0.00041539,30]
[393979762,1763155818296,500.0,0.00041539,30]
[393979763,1763155818911,500.0,0.00041539,30]
[393979764,1763155819526,500.0,0.00041539,30]
[393979765,1763155820155,500.0,0.00041539,30]
[393979766,1763155820782,500.0,0.00041539,30]
[393979767,1763155821395,500.0,0.00041539,30]
[393979768,1763155822023,500.0,0.00041539,30]
[393979769,1763155822753,500.0,0.00041539,30]
[393979770,1763155826877,161.66713131,0.00041539,30]
[393979779,1763155831880,-254.54604552,0.00016025,2]
[393979781,1763155831942,-13.76598848,0.00016025,2]
[393979782,1763155831952,-250.0,0.00016106,2]
[393979783,1763155831962,-241.84261152,0.00016152,2]
[393979784,1763155831981,-58.15738848,0.00016152,2]
[393979785,1763155831991,-1200.0,0.00016152,2]
[393979786,1763155832002,-300.0,0.00016152,2]
[393979787,1763155832012,-101.19588132,0.00016153,2]
[393979788,1763155832044,-884.74298699,0.00016153,2]
[393979789,1763155832056,-431.40243169,0.00016153,2]
[393979790,1763155832066,-731.28195811,0.00016153,2]
[393979791,1763155832094,-59268.77804189,0.00016153,2]
[393979792,1763155832104,-311.71343333,0.00016176,2]
[393979793,1763155832115,-166.66,0.00016202,2]
[393979794,1763155832125,-662.0,0.00016242,2]
[393979795,1763155832135,-506.24,0.00016243,2]
[393979796,1763155832146,-151.0,0.00016243,2]
[393979797,1763155832156,-151.0,0.00016243,2]
[393979798,1763155832167,-151.0,0.00016243,2]
[393979799,1763155832179,-151.0,0.00016243,2]
[393979800,1763155832189,-151.0,0.00016243,2]
[393979802,1763155832200,-151.0,0.00016243,2]
[393979804,1763155832210,-151.0,0.00016243,2]
[393979806,1763155832220,-151.0,0.00016243,2]
[393979808,1763155832231,-151.0,0.00016243,2]
[393979810,1763155832241,-500.0,0.00016252,2]
[393979812,1763155832252,-456.96220317,0.00016252,2]
[393979814,1763155832262,-500.0,0.00016252,2]
[393979817,1763155832273,-500.0,0.00016252,2]
[393979819,1763155832284,-500.0,0.00016252,2]
[393979821,1763155832295,-500.0,0.00016252,2]
[393979823,1763155832304,-510.6439987,0.00016273,2]
[393979825,1763155832314,-501.92101644,0.00016273,2]
[393979827,1763155832324,-502.33367839,0.00016273,2]
[393979829,1763155832334,-500.0,0.00016273,2]
[393979831,1763155832344,-587.04635481,0.00016273,2]
[393979833,1763155832354,-500.0,0.00016273,2]
[393979836,1763155832364,-420.60577606,0.00016273,2]
[393979837,1763155832374,-3171.75,0.00016412,2]
[393979838,1763155832384,-1686.38,0.00016438,2]
[393979839,1763155832394,-506.24,0.00016517,2]
[393979841,1763155832404,-5141.18,0.00016525,2]
[393979843,1763155832414,-150.0,0.00016537,2]
[393979845,1763155832424,-166.66,0.00016543,2]
[393979847,1763155832435,-1000.0,0.00016613,2]
[393979849,1763155832445,-500.0,0.00016624,3]
[393979851,1763155832454,-2557.90540994,0.00016646,2]
[393979853,1763155832464,-198.09,0.00016695,2]
[393979854,1763155832474,-250.0,0.00016746,2]
[393979855,1763155832484,-2557.90540986,0.00016785,2]
[393979856,1763155832494,-506.24,0.00016791,2]
[393979857,1763155832505,-166.66,0.00016884,2]
[393979858,1763155832514,-1188.2061,0.000169,2]
[393979859,1763155832524,-1928.81,0.00016904,2]
[393979860,1763155832534,-2557.90540986,0.00016925,2]
[393979861,1763155832544,-500.0,0.00016973,2]
[393979862,1763155832554,-282.82493621,0.00016999,2]
[393979863,1763155832564,-187.43055387,0.00016999,2]
[393979864,1763155832574,-2569.37900203,0.00017,2]
[393979865,1763155832586,-39818.20754893,0.00017,2]
[393979866,1763155833128,-90647.47693834,0.00017,2]
[393979867,1763155833141,-118202.24894111,0.00017,2]
[393979868,1763155837920,-151.0,0.00016243,2]
[393979869,1763155837934,-151.0,0.00016243,2]
[393979870,1763155837944,-151.0,0.00016243,2]
[393979871,1763155837954,-151.0,0.00016243,2]
[393979872,1763155837963,-1.50146086,0.00016243,2]
[393979873,1763155837976,-149.49853914,0.00016243,2]
[393979874,1763155837986,-151.0,0.00016243,2]
[393979875,1763155837995,-73.07166514,0.00016243,2]
[393979876,1763155838008,-77.92833486,0.00016243,2]
[393979877,1763155838019,-151.0,0.00016243,2]
[393979878,1763155838028,-101.16654525,0.00016243,2]
[393979879,1763155838040,-49.83345475,0.00016243,2]
[393979880,1763155838050,-1959.76945533,0.00017,2]
[393979881,1763155838062,-795.02073269,0.00017,2]
[393979882,1763155838079,-1428.29967162,0.00017,2]
[393979942,1763155839907,-214.31045293,0.00016243,2]
[393979943,1763155839917,-1692.44525643,0.00017,2]
[393979944,1763155839965,-25663.22177254,0.00017,2]
[393979945,1763155839977,-2557.90540986,0.00017064,2]
[393979946,1763155839987,-506.24,0.00017065,2]
[393979947,1763155839997,-150.0,0.00017193,2]
[393979948,1763155840007,-2557.90540986,0.00017203,2]
[393979949,1763155840017,-500.0,0.00017205,2]
[393979950,1763155840026,-166.66,0.00017225,2]
[393979951,1763155840035,-300.0,0.00017313,2]
[393979952,1763155840045,-150.0,0.0001733,2]
[393979953,1763155840055,-153.07114398,0.00017336,2]
[393979954,1763155840064,-506.24427993,0.00017339,2]
[393979955,1763155840074,-2557.90540986,0.00017343,2]
[393979956,1763155840083,-166.66,0.00017436,2]
[393979957,1763155840094,-327.01,0.00017466,2]
[393979958,1763155840103,-2557.90540986,0.00017482,2]
[393979959,1763155840113,-166.66,0.00017566,2]
[393979960,1763155840122,-1000.0,0.000176,2]
[393979961,1763155840132,-2557.90540986,0.00017621,2]
[393979962,1763155840142,-300.0,0.00017628,2]
[393979963,1763155840151,-17599.16009058,0.00017637,2]
[393979964,1763155840161,-420.0,0.00017657,2]
[393979965,1763155840170,-420.0,0.00017657,2]
[393979966,1763155840180,-250.0,0.00017666,2]
[393979967,1763155840191,-300.0,0.00017666,2]
[393979968,1763155840200,-300.0,0.00017666,2]
[393979969,1763155840210,-300.0,0.00017666,2]
[393979970,1763155840220,-418.929716,0.00017666,2]
[393979971,1763155840229,-403.0,0.000177,5]
[393979972,1763155840239,-1000.0,0.000177,2]
[393979973,1763155840249,-9999.99,0.00017728,2]
[393979974,1763155840258,-1282.9,0.00017728,2]
[393979975,1763155840268,-999.99,0.00017728,2]
[393979976,1763155840277,-768.05,0.00017728,2]
[393979977,1763155840287,-1220.86,0.00017728,2]
[393979978,1763155840296,-150.99,0.00017728,2]
[393979979,1763155840306,-9999.99,0.00017728,2]
[393979980,1763155840315,-6130.69469915,0.00017728,2]
[393979982,1763155840342,-2374.175,0.00017728,2]
[393979993,1763155843409,-270.76163892,0.00017728,2]
[393979994,1763155843425,-2187.00679409,0.00017728,2]
[393979995,1763155843437,-3952.7983,0.00017728,2]
[393979996,1763155843450,-3839.24112743,0.00017728,2]
[393979997,1763155844095,-5875.4206243,0.00017728,2]
[393980023,1763155846012,-14273.78467692,0.00017728,2]
[393980024,1763155846380,-738.4500015,0.00017728,2]
[393980071,1763155864932,359.76179104,0.00041539,30]
[393980072,1763155865564,160.03601013,0.00041539,30]
[393980073,1763155865628,533.97301374,0.00041539,30]
[393980074,1763155869110,277.04947678,0.00041539,30]
[393980075,1763155869520,250.0,0.00041539,30]
[393980076,1763155870188,250.0,0.00041539,30]
[393980077,1763155870788,500.0,0.00041539,30]
[393980078,1763155870846,250.0,0.00041539,30]
[393980079,1763155871405,500.0,0.00041539,30]
[393980080,1763155871465,250.0,0.00041539,30]
[393980081,1763155871774,500.0,0.00041539,30]
[393980082,1763155872066,500.0,0.00041539,30]
[393980083,1763155872340,500.0,0.00041539,30]
[393980084,1763155872398,500.0,0.00041539,30]
[393980085,1763155872695,500.0,0.00041539,30]
[393980086,1763155872976,500.0,0.00041539,30]
[393980087,1763155873046,500.0,0.00041539,30]
[393980088,1763155873324,500.0,0.00041539,30]
[393980089,1763155873617,500.0,0.00041539,30]
[393980090,1763155873679,500.0,0.00041539,30]
[393980091,1763155873948,500.0,0.00041539,30]
[393980092,1763155874231,500.0,0.00041539,30]
[393980093,1763155874537,500.0,0.00041539,30]
[393980094,1763155874807,500.0,0.00041539,30]
[393980095,1763155874921,500.0,0.00041539,30]
[393980096,1763155874985,500.0,0.00041539,30]
[393980097,1763155875153,500.0,0.00041539,30]
[393980098,1763155875481,500.0,0.00041539,30]
[393980099,1763155875556,500.0,0.00041539,30]
[393980100,1763155875750,500.0,0.00041539,30]
[393980101,1763155876093,500.0,0.00041539,30]
[393980102,1763155876397,500.0,0.00041539,30]
[393980103,1763155876630,500.0,0.00041539,30]
[393980104,1763155876693,500.0,0.00041539,30]
[393980105,1763155877292,500.0,0.00041539,30]
[393980106,1763155877920,500.0,0.00041539,30]
[393980107,1763155878543,500.0,0.00041539,30]
[393980108,1763155879345,500.0,0.00041539,30]
[393980109,1763155879419,151.0,0.00041539,30]
[393980110,1763155879728,250.0,0.00041539,30]
[393980111,1763155879953,500.0,0.00041539,30]
[393980112,1763155880013,151.0,0.00041539,30]
[393980113,1763155880331,250.0,0.00041539,30]
[393980114,1763155880568,500.0,0.00041539,30]
[393980115,1763155880626,151.0,0.00041539,30]
[393980116,1763155881196,500.0,0.00041539,30]
[393980117,1763155881797,500.0,0.00041539,30]
[393980118,1763155882397,500.0,0.00041539,30]
[393980119,1763155883463,500.0,0.00041539,30]
[393980120,1763155884092,500.0,0.00041539,30]
[393980121,1763155884891,500.0,0.00041539,30]
[393980122,1763155884987,200.0,0.00041539,30]
[393980123,1763155885463,207.4,0.00041539,30]
[393980124,1763155886060,207.4,0.00041539,30]
[393980125,1763155924873,151.0,0.00041539,30]
[393980126,1763155924962,500.0,0.00041539,30]
[393980127,1763155925485,156.587,0.00041539,30]
[393980128,1763155925553,500.0,0.00041539,30]
[393980129,1763155926080,162.380719,0.00041539,30]
[393980130,1763155926479,500.0,0.00041539,30]
[393980131,1763155926695,162.380719,0.00041539,30]
[393980132,1763155926877,500.0,0.00041539,30]
[393980133,1763155927485,500.0,0.00041539,30]
[393980134,1763155928110,500.0,0.00041539,30]
[393980135,1763155928826,500.0,0.00041539,30]
[393980136,1763155929320,500.0,0.00041539,30]
[393980137,1763155929584,201.81957757,0.00041539,30]
[393980138,1763155929913,500.0,0.00041539,30]
[393980139,1763155930511,500.0,0.00041539,30]
[393980140,1763155931147,500.0,0.00041539,30]
[393980141,1763155931751,500.0,0.00041539,30]
[393980142,1763155932568,500.0,0.00041539,30]
[393980143,1763155933187,500.0,0.00041539,30]
[393980144,1763155933830,500.0,0.00041539,30]
[393980145,1763155934483,500.0,0.00041539,30]
[393980146,1763155935115,500.0,0.00041539,30]
[393980147,1763155935771,500.0,0.00041539,30]
[393980148,1763155936399,500.0,0.00041539,30]
[393980149,1763155937033,500.0,0.00041539,30]
[393980150,1763155940849,302.0,0.00041539,30]
[393980157,1763156390650,169.81,8.143e-05,2]
[393980158,1763156390859,169.81,8.571e-05,2]
[393980159,1763156391078,169.81,9e-05,2]
[393980160,1763156391289,169.81,9.429e-05,2]
[393980161,1763156391496,169.81,9.857e-05,2]
[393980162,1763156391696,169.81,0.00010286,2]
[393980163,1763156392119,169.81,0.00010714,2]
[393980164,1763156392335,169.81,0.00011143,2]
[393980165,1763156392539,169.81,0.00011571,2]
[393980166,1763156392756,169.81,0.00012,2]
[393980167,1763156392978,169.81,0.00012429,2]
[393980168,1763156393225,169.81,0.00012857,2]
[393980169,1763156393413,169.81,0.00013286,2]
[393980170,1763156393661,169.81,0.00013714,2]
[393980171,1763156394655,169.81,0.00014143,2]
[393980172,1763156394903,169.81,0.00014572,2]
[393980173,1763156395454,169.81,0.00015,2]
[393980174,1763156395495,169.81,0.00015429,2]
[393980532,1763157032406,-169.81,0.00015857,2]
[393980533,1763157032419,-250.0,0.00015906,2]
[393980534,1763157032429,-250.0,0.00015993,2]
[393980535,1763157032439,-175.69479946,0.00016041,2]
[393980536,1763157032450,-999.0,0.0001606,3]
[393980537,1763157032460,-1500.0,0.00016141,2]
[393980538,1763157032471,-160.0,0.00016149,2]
[393980539,1763157032481,-300.0,0.00016172,2]
[393980540,1763157032491,-300.0,0.00016172,2]
[393980541,1763157032501,-1200.0,0.00016172,2]
[393980542,1763157032511,-202.86001584,0.00016173,2]
[393980543,1763157032527,-297.13998416,0.00016173,2]
[393980544,1763157032537,-500.0,0.00016173,2]
[393980545,1763157032547,-500.85732127,0.00016173,2]
[393980546,1763157032558,-500.0,0.00016173,2]
[393980547,1763157032568,-500.0,0.00016173,2]
[393980548,1763157032579,-204.26116056,0.00016173,2]
[393980549,1763157032589,-500.88609333,0.00016173,2]
[393980550,1763157032600,-151.0,0.00016189,2]
[393980551,1763157032610,-151.0,0.00016189,2]
[393980553,1763157032620,-151.0,0.00016189,2]
[393980554,1763157032633,-151.0,0.00016189,2]
[393980555,1763157032642,-151.0,0.00016189,2]
[393980556,1763157032652,-151.0,0.00016189,2]
[393980557,1763157032663,-151.0,0.00016189,2]
[393980558,1763157032674,-151.0,0.00016189,2]
[393980559,1763157032684,-151.0,0.00016189,2]
[393980560,1763157032694,-151.0,0.00016189,2]
[393980561,1763157032704,-151.0,0.00016189,2]
[393980562,1763157032715,-151.0,0.00016189,2]
[393980563,1763157032724,-151.0,0.00016189,2]
[393980565,1763157032734,-151.0,0.00016189,2]
[393980567,1763157032744,-151.0,0.00016189,2]
[393980569,1763157032754,-151.0,0.00016189,2]
[393980570,1763157032765,-151.0,0.00016189,2]
[393980571,1763157032775,-151.0,0.00016189,2]
[393980572,1763157032785,-151.0,0.00016189,2]
[393980573,1763157032795,-151.0,0.00016189,2]
[393980574,1763157032806,-1200.0,0.00016197,2]
[393980575,1763157032816,-1000.0,0.00016198,2]
[393980576,1763157032827,-500.0,0.00016198,2]
[393980577,1763157032840,-500.0,0.00016198,2]
[393980578,1763157032850,-171.37691835,0.00016198,2]
[393980579,1763157032861,-190.19416215,0.00016198,2]
[393980580,1763157032871,-543.0041758,0.00016198,2]
[393980581,1763157032881,-500.0,0.00016198,2]
[393980582,1763157032891,-500.0,0.00016198,2]
[393980583,1763157032902,-500.0,0.00016198,2]
[393980584,1763157032913,-500.0,0.00016198,2]
[393980585,1763157032923,-500.0,0.00016198,2]
[393980586,1763157032933,-575.70590052,0.00016198,2]
[393980587,1763157032944,-500.0,0.00016198,2]
[393980588,1763157032955,-500.0,0.00016198,2]
[393980589,1763157032967,-500.0,0.00016198,2]
[393980590,1763157032978,-500.0,0.00016198,2]
[393980591,1763157032989,-500.0,0.00016198,2]
[393980592,1763157032999,-500.0,0.00016198,2]
[393980593,1763157033010,-500.0,0.00016198,2]
[393980594,1763157033020,-500.0,0.00016198,2]
[393980595,1763157033031,-500.0,0.00016198,2]
[393980596,1763157033041,-500.0,0.00016198,2]
[393980597,1763157033052,-500.0,0.00016198,2]
[393980598,1763157033062,-500.0,0.00016198,2]
[393980599,1763157033073,-500.0,0.00016198,2]
[393980600,1763157033083,-500.0,0.00016198,2]
[393980601,1763157033094,-500.0,0.00016198,2]
[393980602,1763157033105,-500.0,0.00016198,2]